[Event "EYCC Girls U10 2021"]
[Site "Tornelo"]
[Date "2021.10.15"]
[Round "8.7"]
[White "Kutateladze, Anastasia"]
[Black "Sultanova, Kristina"]
[Result "0-1"]
[ECO "B33"]
[WhiteElo "1137"]
[BlackElo "1293"]
[Annotator "NA"]
[PlyCount "164"]
[EventDate "2021.10.15"]
[EventType "swiss"]
[EventCountry "NET"]
[SourceTitle "playchess.com"]
[Source "ChessBase"]
[SourceQuality "1"]
[TimeControl "5400+30"]

1. e4 {[%emt 0:00:30]} c5 {[%emt 0:00:41]} 2. Nf3 {[%emt 0:00:12]} Nc6 {[%emt 0:00:10]} 3. d4 {[%emt 0:00:05]} cxd4 {[%emt 0:00:09]} 4. Nxd4 {[%emt 0:00:09]} Nf6 {[%emt 0:00:07]} 5. Nc3 {[%emt 0:00:26]} e5 {[%emt 0:00:14]} 6. Nb3 {[%emt 0:00:50]} Bb4 {[%emt 0:00:16]} 7. f3 {[%emt 0:02:28]} d5 {[%emt 0:00:11]} 8. exd5 {[%emt 0:00:36]} Nxd5 {[%emt 0:00:13]} 9. Bd2 {[%emt 0:00:58]} Nxc3 {[%emt 0:00:11]} 10. Bxc3 {[%emt 0:01:13]} Bxc3+ {[%emt 0:00:34]} 11. bxc3 {[%emt 0:00:17]} O-O {[%emt 0:00:31]} 12. Bd3 {[%emt 0:01:28]} b6 {[%emt 0:01:04]} 13. Qe2 {[%emt 0:01:36]} Bb7 {[%emt 0:01:16]} 14. Rb1 {[%emt 0:01:24]} Qe7 {[%emt 0:00:31]} 15. O-O {[%emt 0:03:28]} Rac8 {[%emt 0:03:47]} 16. Rfe1 {[%emt 0:11:12]} Rfe8 {[%emt 0:05:09]} 17. Bb5 {[%emt 0:03:08]} f6 {[%emt 0:11:06]} 18. Nd2 {[%emt 0:04:44]} Rc7 {[%emt 0:02:29]} 19. Rbd1 {[%emt 0:03:37]} Bc8 {[%emt 0:06:36]} 20. Ne4 {[%emt 0:02:26]} Be6 {[%emt 0:00:46]} 21. Bc4 {[%emt 0:11:08]} Na5 {[%emt 0:03:01]} 22. Bb3 {[%emt 0:01:32]} Nc4 {[%emt 0:01:11]} 23. Nd2 {[%emt 0:07:26]} Nxd2 {[%emt 0:01:28]} 24. Qxd2 {[%emt 0:05:30]} Rec8 {[%emt 0:01:15]} 25. Re3 {[%emt 0:01:30]} Bf7 {[%emt 0:04:42]} 26. Rd3 {[%emt 0:03:01]} h6 {[%emt 0:07:52]} 27. h3 {[%emt 0:05:47]} Kh7 {[%emt 0:05:29]} 28. Kh1 {[%emt 0:00:38]} Bg6 {[%emt 0:01:36]} 29. Re3 {[%emt 0:01:18]} Qc5 {[%emt 0:07:04]} 30. Be6 {[%emt 0:02:14]} Re8 {[%emt 0:00:39]} 31. Bb3 {[%emt 0:00:54]} Qa5 {[%emt 0:00:27]} 32. Qe1 {[%emt 0:03:30]} Rc5 {[%emt 0:01:10]} 33. c4 {[%emt 0:02:38]} Qxe1+ {[%emt 0:00:35]} 34. Rexe1 {[%emt 0:00:15]} Rc7 {[%emt 0:02:29]} 35. Rd2 {[%emt 0:01:25]} Bf5 {[%emt 0:01:16]} 36. Rd6 {[%emt 0:03:56]} Ree7 {[%emt 0:00:49]} 37. Red1 {[%emt 0:00:16]} Red7 {[%emt 0:00:34]} 38. Rxd7 {[%emt 0:00:27]} Rxd7 {[%emt 0:00:09]} 39. Rxd7 {[%emt 0:00:17]} Bxd7 {[%emt 0:00:21]} 40. Kg1 {[%emt 0:00:25]} Be6 {[%emt 0:00:10]} 41. Kf2 {[%emt 0:00:17]} Kg6 {[%emt 0:00:10]} 42. c3 {[%emt 0:00:41]} Kf7 {[%emt 0:00:12]} 43. Ke3 {[%emt 0:00:14]} Ke7 {[%emt 0:00:09]} 44. Kd3 {[%emt 0:01:23]} Kd6 {[%emt 0:00:14]} 45. a4 {[%emt 0:04:48]} Kc5 {[%emt 0:00:13]} 46. h4 {[%emt 0:00:19]} h5 {[%emt 0:00:10]} 47. g3 {[%emt 0:00:07]} a6 {[%emt 0:00:16]} 48. Ba2 {[%emt 0:00:20]} b5 {[%emt 0:01:28]} 49. axb5 {[%emt 0:00:36]} axb5 {[%emt 0:00:13]} 50. Ke4 {[%emt 0:00:17]} Bxc4 {[%emt 0:00:54]} 51. Bb1 {[%emt 0:00:17]} Be6 {[%emt 0:00:29]} 52. Bd3 {[%emt 0:00:24]} g6 {[%emt 0:00:24]} 53. Ke3 {[%emt 0:00:12]} f5 {[%emt 0:00:46]} 54. f4 {[%emt 0:00:33]} e4 {[%emt 0:00:15]} 55. Be2 {[%emt 0:00:47]} Bc4 {[%emt 0:01:19]} 56. Bd1 {[%emt 0:00:33]} Kd5 {[%emt 0:00:20]} 57. Bc2 {[%emt 0:00:56]} Ba2 {[%emt 0:00:12]} 58. Kd2 {[%emt 0:02:07]} Kc4 {[%emt 0:00:13]} 59. Bd1 {[%emt 0:00:20]} e3+ {[%emt 0:01:05]} 60. Kxe3 {[%emt 0:00:20]} Kxc3 {[%emt 0:00:08]} 61. Bf3 {[%emt 0:00:50]} b4 {[%emt 0:00:18]} 62. Bc6 {[%emt 0:00:17]} Bf7 {[%emt 0:00:12]} 63. Ba4 {[%emt 0:00:12]} b3 {[%emt 0:00:07]} 64. Bxb3 {[%emt 0:00:04]} Bxb3 {[%emt 0:00:07]} 65. Kf2 {[%emt 0:00:11]} Kd2 {[%emt 0:00:09]} 66. Kf3 {[%emt 0:00:06]} Bc4 {[%emt 0:00:20]} 67. Kf2 {[%emt 0:00:18]} Be2 {[%emt 0:00:08]} 68. Kg1 {[%emt 0:00:21]} Ke3 {[%emt 0:00:27]} 69. Kh2 {[%emt 0:00:51]} Kf2 {[%emt 0:00:10]} 70. Kh3 {[%emt 0:00:13]} Bf3 {[%emt 0:00:11]} 71. Kh2 {[%emt 0:00:13]} Bg4 {[%emt 0:00:10]} 72. Kh1 {[%emt 0:00:07]} Kxg3 {[%emt 0:00:16]} 73. Kg1 {[%emt 0:00:07]} Kxf4 {[%emt 0:00:09]} 74. Kh2 {[%emt 0:00:08]} Ke3 {[%emt 0:00:12]} 75. Kg3 {[%emt 0:00:08]} f4+ {[%emt 0:00:09]} 76. Kg2 {[%emt 0:00:04]} Ke2 {[%emt 0:00:20]} 77. Kg1 {[%emt 0:00:12]} f3 {[%emt 0:00:09]} 78. Kh2 {[%emt 0:00:28]} f2 {[%emt 0:00:08]} 79. Kh1 {[%emt 0:00:04]} f1=Q+ {[%emt 0:00:13]} 80. Kh2 {[%emt 0:00:13]} Bh3 {[%emt 0:00:08]} 81. Kg3 {[%emt 0:00:06]} Qf3+ {[%emt 0:00:07]} 82. Kh2 {[%emt 0:00:09]} Qg2# {[%emt 0:00:08]} 0-1

[Event "EYCC Girls U10 2021"]
[Site "Tornelo"]
[Date "2021.10.15"]
[Round "8.8"]
[White "Valiyeva, Asnad"]
[Black "Figa, Karolina"]
[Result "0-1"]
[ECO "D00"]
[WhiteElo "1173"]
[BlackElo "1411"]
[Annotator "NA"]
[PlyCount "178"]
[EventDate "2021.10.15"]
[EventType "swiss"]
[EventCountry "NET"]
[SourceTitle "playchess.com"]
[Source "ChessBase"]
[SourceQuality "1"]
[TimeControl "5400+30"]

1. d4 {[%emt 0:00:30]} Nf6 {[%emt 0:00:40]} 2. Bf4 {[%emt 0:00:08]} d5 {[%emt 0:00:12]} 3. e3 {[%emt 0:00:31]} c5 {[%emt 0:00:13]} 4. c3 {[%emt 0:00:16]} Nc6 {[%emt 0:00:37]} 5. Nd2 {[%emt 0:00:53]} Qb6 {[%emt 0:01:05]} 6. Qb3 {[%emt 0:01:32]} c4 {[%emt 0:01:38]} 7. Qc2 {[%emt 0:01:18]} g6 {[%emt 0:05:04]} 8. b3 {[%emt 0:04:36]} Bf5 {[%emt 0:05:19]} 9. Qc1 {[%emt 0:01:56]} cxb3 {[%emt 0:04:42]} 10. axb3 {[%emt 0:00:14]} Ne4 {[%emt 0:00:56]} 11. Ngf3 {[%emt 0:00:39]} Na5 {[%emt 0:01:04]} 12. b4 {[%emt 0:00:53]} Nc6 {[%emt 0:01:47]} 13. Nxe4 {[%emt 0:00:52]} Bxe4 {[%emt 0:00:43]} 14. Be2 {[%emt 0:00:12]} Bg7 {[%emt 0:00:57]} 15. O-O {[%emt 0:01:15]} O-O {[%emt 0:01:22]} 16. Nd2 {[%emt 0:00:57]} Bf5 {[%emt 0:01:15]} 17. Nb3 {[%emt 0:02:56]} Qd8 {[%emt 0:01:13]} 18. b5 {[%emt 0:02:18]} Nb8 {[%emt 0:04:39]} 19. Ra3 {[%emt 0:12:17]} a5 {[%emt 0:03:38]} 20. Bxb8 {[%emt 0:01:33]} Qxb8 {[%emt 0:01:14]} 21. Nxa5 {[%emt 0:02:00]} Qc7 {[%emt 0:01:50]} 22. Qa1 {[%emt 0:07:51]} Bd7 {[%emt 0:02:36]} 23. Nc6 {[%emt 0:10:28]} Rae8 {[%emt 0:05:09]} 24. Nb4 {[%emt 0:01:20]} Qd6 {[%emt 0:02:39]} 25. Ra7 {[%emt 0:05:19]} Rb8 {[%emt 0:02:15]} 26. Qa2 {[%emt 0:01:00]} e6 {[%emt 0:01:57]} 27. Ra1 {[%emt 0:02:40]} Rfc8 {[%emt 0:01:58]} 28. Qb3 {[%emt 0:05:21]} Qb6 {[%emt 0:02:19]} 29. R7a5 {[%emt 0:02:05]} Qc7 {[%emt 0:02:46]} 30. R1a3 {[%emt 0:01:46]} Bf8 {[%emt 0:01:51]} 31. h3 {[%emt 0:01:49]} Qxc3 {[%emt 0:00:55]} 32. Qxc3 {[%emt 0:05:02]} Rxc3 {[%emt 0:00:19]} 33. Rxc3 {[%emt 0:00:08]} Bxb4 {[%emt 0:00:20]} 34. Raa3 {[%emt 0:00:20]} Bxa3 {[%emt 0:03:08]} 35. Rxa3 {[%emt 0:00:05]} Kf8 {[%emt 0:00:11]} 36. Ra7 {[%emt 0:00:14]} Ke7 {[%emt 0:00:29]} 37. Kh2 {[%emt 0:01:06]} f6 {[%emt 0:00:59]} 38. Kg3 {[%emt 0:01:38]} e5 {[%emt 0:00:20]} 39. h4 {[%emt 0:02:30]} Kd6 {[%emt 0:00:38]} 40. Ra5 {[%emt 0:02:32]} Rc8 {[%emt 0:01:47]} 41. b6 {[%emt 0:10:41]} Rc2 {[%emt 0:04:18]} 42. Bd1 {[%emt 0:01:43]} Rb2 {[%emt 0:00:42]} 43. Ra8 {[%emt 0:01:27]} Be6 {[%emt 0:01:51]} 44. Rd8+ {[%emt 0:01:08]} Kc6 {[%emt 0:00:43]} 45. Rf8 {[%emt 0:00:11]} exd4 {[%emt 0:00:55]} 46. Rxf6 {[%emt 0:00:51]} Kd7 {[%emt 0:00:25]} 47. exd4 {[%emt 0:00:05]} Ke7 {[%emt 0:00:57]} 48. Rf3 {[%emt 0:00:15]} Rd2 {[%emt 0:00:50]} 49. Bb3 {[%emt 0:02:13]} Rxd4 {[%emt 0:00:20]} 50. Rf4 {[%emt 0:00:40]} Rd2 {[%emt 0:00:20]} 51. Rf3 {[%emt 0:00:16]} Rb2 {[%emt 0:01:14]} 52. Re3 {[%emt 0:00:37]} Kd6 {[%emt 0:00:22]} 53. Kf3 {[%emt 0:00:58]} Rd2 {[%emt 0:00:40]} 54. g3 {[%emt 0:00:10]} Rd4 {[%emt 0:00:16]} 55. Bc2 {[%emt 0:00:32]} Rb4 {[%emt 0:00:27]} 56. Rb3 {[%emt 0:00:41]} Rxb3+ {[%emt 0:01:30]} 57. Bxb3 {[%emt 0:00:07]} Kc6 {[%emt 0:00:10]} 58. Kf4 {[%emt 0:00:06]} Kc5 {[%emt 0:00:29]} 59. Ke5 {[%emt 0:00:22]} Bg8 {[%emt 0:01:00]} 60. g4 {[%emt 0:00:17]} Kxb6 {[%emt 0:00:50]} 61. Bxd5 {[%emt 0:00:06]} Bxd5 {[%emt 0:00:15]} 62. Kxd5 {[%emt 0:00:04]} Kc7 {[%emt 0:00:02]} 63. Kc5 {[%emt 0:00:05]} b6+ {[%emt 0:00:04]} 64. Kd5 {[%emt 0:00:15]} Kb7 {[%emt 0:00:05]} 65. f4 {[%emt 0:00:06]} Kc7 {[%emt 0:00:18]} 66. f5 {[%emt 0:00:17]} gxf5 {[%emt 0:00:30]} 67. gxf5 {[%emt 0:00:08]} Kd7 {[%emt 0:00:03]} 68. Ke5 {[%emt 0:00:08]} Ke7 {[%emt 0:00:04]} 69. h5 {[%emt 0:00:27]} h6 {[%emt 0:00:21]} 70. Kd5 {[%emt 0:00:19]} Kf6 {[%emt 0:00:18]} 71. Kc6 {[%emt 0:00:02]} Kxf5 {[%emt 0:00:03]} 72. Kxb6 {[%emt 0:00:03]} Kg5 {[%emt 0:00:13]} 73. Kc5 {[%emt 0:00:03]} Kxh5 {[%emt 0:00:07]} 74. Kd4 {[%emt 0:00:02]} Kg4 {[%emt 0:00:04]} 75. Ke3 {[%emt 0:00:05]} Kg3 {[%emt 0:00:03]} 76. Ke4 {[%emt 0:00:04]} h5 {[%emt 0:00:09]} 77. Kf5 {[%emt 0:00:04]} h4 {[%emt 0:00:06]} 78. Kg6 {[%emt 0:00:02]} h3 {[%emt 0:00:04]} 79. Kg5 {[%emt 0:00:02]} h2 {[%emt 0:00:04]} 80. Kg6 {[%emt 0:00:14]} h1=Q {[%emt 0:00:14]} 81. Kg5 {[%emt 0:00:02]} Qf3 {[%emt 0:00:11]} 82. Kg6 {[%emt 0:00:04]} Qf4 {[%emt 0:00:03]} 83. Kh5 {[%emt 0:00:04]} Kf3 {[%emt 0:00:20]} 84. Kg6 {[%emt 0:00:04]} Ke4 {[%emt 0:00:05]} 85. Kg7 {[%emt 0:00:05]} Qf5 {[%emt 0:00:06]} 86. Kh6 {[%emt 0:00:05]} Qg4 {[%emt 0:00:07]} 87. Kh7 {[%emt 0:00:02]} Kf5 {[%emt 0:00:06]} 88. Kh8 {[%emt 0:00:02]} Kf6 {[%emt 0:00:05]} 89. Kh7 {[%emt 0:00:04]} Qg7# {[%emt 0:00:13]} 0-1

[Event "EYCC Girls U10 2021"]
[Site "Tornelo"]
[Date "2021.10.15"]
[Round "8.9"]
[White "Sunea, Sara Maria"]
[Black "Sokolova, Regina"]
[Result "0-1"]
[ECO "C10"]
[WhiteElo "1342"]
[BlackElo "1364"]
[Annotator "NA"]
[PlyCount "146"]
[EventDate "2021.10.15"]
[EventType "swiss"]
[EventCountry "NET"]
[SourceTitle "playchess.com"]
[Source "ChessBase"]
[SourceQuality "1"]
[TimeControl "5400+30"]

1. e4 {[%emt 0:00:30]} e6 {[%emt 0:00:34]} 2. d4 {[%emt 0:01:28]} d5 {[%emt 0:00:04]} 3. Nd2 {[%emt 0:00:10]} dxe4 {[%emt 0:00:06]} 4. Nxe4 {[%emt 0:00:26]} Bd7 {[%emt 0:00:05]} 5. Nf3 {[%emt 0:00:35]} Bc6 {[%emt 0:00:07]} 6. Bd3 {[%emt 0:00:24]} Nd7 {[%emt 0:00:39]} 7. Bf4 {[%emt 0:02:11]} Ngf6 {[%emt 0:00:50]} 8. Qe2 {[%emt 0:04:55]} Be7 {[%emt 0:08:33]} 9. O-O {[%emt 0:02:24]} h6 {[%emt 0:13:55]} 10. h3 {[%emt 0:01:03]} Nxe4 {[%emt 0:00:55]} 11. Bxe4 {[%emt 0:00:25]} Bxe4 {[%emt 0:00:26]} 12. Qxe4 {[%emt 0:00:18]} c6 {[%emt 0:00:29]} 13. Rfe1 {[%emt 0:05:01]} O-O {[%emt 0:09:45]} 14. Ne5 {[%emt 0:02:05]} Nxe5 {[%emt 0:00:43]} 15. Bxe5 {[%emt 0:00:49]} Bf6 {[%emt 0:01:50]} 16. Re3 {[%emt 0:01:20]} Bxe5 {[%emt 0:01:47]} 17. Qxe5 {[%emt 0:00:12]} Qd5 {[%emt 0:00:50]} 18. c3 {[%emt 0:01:43]} Qxe5 {[%emt 0:00:35]} 19. Rxe5 {[%emt 0:05:40]} Rfd8 {[%emt 0:01:03]} 20. Rae1 {[%emt 0:00:40]} Rd5 {[%emt 0:01:30]} 21. Kh2 {[%emt 0:01:24]} Rc8 {[%emt 0:00:22]} 22. Kg3 {[%emt 0:00:57]} Kf8 {[%emt 0:00:15]} 23. Kf4 {[%emt 0:00:18]} g5+ {[%emt 0:00:52]} 24. Kg4 {[%emt 0:00:18]} Rd7 {[%emt 0:04:08]} 25. Kh5 {[%emt 0:05:38]} Kg7 {[%emt 0:00:10]} 26. Ra5 {[%emt 0:00:23]} b6 {[%emt 0:00:33]} 27. Rae5 {[%emt 0:00:16]} Rdc7 {[%emt 0:01:54]} 28. R1e3 {[%emt 0:01:37]} Re7 {[%emt 0:01:59]} 29. h4 {[%emt 0:01:43]} gxh4 {[%emt 0:11:10]} 30. Kxh4 {[%emt 0:00:18]} Kh7 {[%emt 0:00:33]} 31. Kh5 {[%emt 0:00:35]} Rg8 {[%emt 0:04:41]} 32. g4 {[%emt 0:00:29]} Rg6 {[%emt 0:02:12]} 33. Rh3 {[%emt 0:01:57]} Re8 {[%emt 0:01:03]} 34. f4 {[%emt 0:14:15]} Reg8 {[%emt 0:00:47]} 35. g5 {[%emt 0:00:50]} hxg5 {[%emt 0:12:25]} 36. Kg4+ {[%emt 0:00:45]} Kg7 {[%emt 0:00:44]} 37. Rxg5 {[%emt 0:00:23]} Rxg5+ {[%emt 0:00:17]} 38. fxg5 {[%emt 0:01:24]} Rd8 {[%emt 0:01:00]} 39. Rd3 {[%emt 0:01:01]} c5 {[%emt 0:03:54]} 40. b3 {[%emt 0:00:38]} Rd5 {[%emt 0:00:46]} 41. Kf4 {[%emt 0:00:57]} Kg6 {[%emt 0:00:08]} 42. Ke4 {[%emt 0:02:29]} Rxg5 {[%emt 0:01:17]} 43. dxc5 {[%emt 0:00:30]} Rxc5 {[%emt 0:00:05]} 44. Rd7 {[%emt 0:00:23]} Rxc3 {[%emt 0:01:11]} 45. Rxa7 {[%emt 0:00:15]} Rc2 {[%emt 0:00:22]} 46. Rb7 {[%emt 0:00:19]} Rxa2 {[%emt 0:02:09]} 47. Rxb6 {[%emt 0:00:16]} f5+ {[%emt 0:02:20]} 48. Kf4 {[%emt 0:00:26]} Kf6 {[%emt 0:00:12]} 49. b4 {[%emt 0:00:14]} Rb2 {[%emt 0:01:18]} 50. b5 {[%emt 0:00:11]} Rb4+ {[%emt 0:00:05]} 51. Kf3 {[%emt 0:00:06]} Ke5 {[%emt 0:00:17]} 52. Rb8 {[%emt 0:00:18]} Kd6 {[%emt 0:00:20]} 53. b6 {[%emt 0:00:12]} Kc6 {[%emt 0:01:36]} 54. Re8 {[%emt 0:00:11]} Re4 {[%emt 0:00:49]} 55. Rb8 {[%emt 0:00:21]} e5 {[%emt 0:01:00]} 56. Kg3 {[%emt 0:02:09]} f4+ {[%emt 0:01:27]} 57. Kf3 {[%emt 0:00:07]} Rb4 {[%emt 0:00:10]} 58. Re8 {[%emt 0:00:17]} Rb3+ {[%emt 0:01:01]} 59. Kf2 {[%emt 0:03:32]} Kd5 {[%emt 0:02:11]} 60. Rb8 {[%emt 0:00:19]} Ke4 {[%emt 0:00:27]} 61. b7 {[%emt 0:00:23]} Rb2+ {[%emt 0:00:14]} 62. Kf1 {[%emt 0:00:14]} Kf3 {[%emt 0:00:30]} 63. Ke1 {[%emt 0:00:25]} e4 {[%emt 0:00:14]} 64. Kd1 {[%emt 0:00:27]} e3 {[%emt 0:00:26]} 65. Rh8 {[%emt 0:00:15]} Rxb7 {[%emt 0:00:06]} 66. Rh3+ {[%emt 0:00:17]} Ke4 {[%emt 0:00:05]} 67. Ke2 {[%emt 0:00:19]} Rb2+ {[%emt 0:00:03]} 68. Ke1 {[%emt 0:00:13]} f3 {[%emt 0:00:14]} 69. Kd1 {[%emt 0:00:20]} Rd2+ {[%emt 0:00:20]} 70. Kc1 {[%emt 0:00:16]} Rd6 {[%emt 0:00:28]} 71. Rh4+ {[%emt 0:00:10]} Kd3 {[%emt 0:00:19]} 72. Rf4 {[%emt 0:00:11]} f2 {[%emt 0:00:14]} 73. Kb1 {[%emt 0:00:24]} e2 {[%emt 0:00:58]} 0-1

[Event "EYCC Girls U10 2021"]
[Site "Tornelo"]
[Date "2021.10.15"]
[Round "8.10"]
[White "Berezovskaya, Arina"]
[Black "Beber, Anja"]
[Result "1/2-1/2"]
[ECO "B06"]
[WhiteElo "1102"]
[BlackElo "1552"]
[Annotator "NA"]
[PlyCount "81"]
[EventDate "2021.10.15"]
[EventType "swiss"]
[EventCountry "NET"]
[SourceTitle "playchess.com"]
[Source "ChessBase"]
[SourceQuality "1"]
[TimeControl "5400+30"]

1. e4 {[%emt 0:00:30]} g6 {[%emt 0:00:38]} 2. d4 {[%emt 0:00:45]} Bg7 {[%emt 0:00:08]} 3. Nc3 {[%emt 0:00:54]} c6 {[%emt 0:00:45]} 4. Nf3 {[%emt 0:00:32]} d6 {[%emt 0:00:08]} 5. Be3 {[%emt 0:00:53]} Nd7 {[%emt 0:02:02]} 6. Bd3 {[%emt 0:01:24]} Ngf6 {[%emt 0:00:42]} 7. h3 {[%emt 0:01:55]} Qc7 {[%emt 0:01:29]} 8. O-O {[%emt 0:00:52]} O-O {[%emt 0:00:10]} 9. Qd2 {[%emt 0:01:07]} Rd8 {[%emt 0:04:47]} 10. Bh6 {[%emt 0:01:25]} Bh8 {[%emt 0:01:40]} 11. Bc4 {[%emt 0:05:36]} Nf8 {[%emt 0:04:04]} 12. Ng5 {[%emt 0:08:00]} d5 {[%emt 0:00:45]} 13. Bxf8 {[%emt 0:04:23]} Kxf8 {[%emt 0:03:05]} 14. e5 {[%emt 0:07:56]} dxc4 {[%emt 0:02:02]} 15. exf6 {[%emt 0:00:09]} exf6 {[%emt 0:00:13]} 16. Nf3 {[%emt 0:04:41]} Be6 {[%emt 0:01:19]} 17. Ne2 {[%emt 0:07:05]} Qd6 {[%emt 0:05:48]} 18. Qf4 {[%emt 0:04:54]} Qxf4 {[%emt 0:03:44]} 19. Nxf4 {[%emt 0:00:44]} g5 {[%emt 0:02:27]} 20. Nxe6+ {[%emt 0:03:22]} fxe6 {[%emt 0:00:08]} 21. Rfe1 {[%emt 0:00:21]} Kf7 {[%emt 0:00:16]} 22. c3 {[%emt 0:00:16]} h5 {[%emt 0:03:23]} 23. a4 {[%emt 0:01:01]} a5 {[%emt 0:00:38]} 24. Nd2 {[%emt 0:01:42]} b5 {[%emt 0:00:19]} 25. Ne4 {[%emt 0:01:45]} Bg7 {[%emt 0:07:44]} 26. Nc5 {[%emt 0:01:36]} Re8 {[%emt 0:01:08]} 27. axb5 {[%emt 0:01:17]} cxb5 {[%emt 0:00:18]} 28. Nb7 {[%emt 0:01:40]} Bf8 {[%emt 0:00:53]} 29. Nxa5 {[%emt 0:04:40]} Rec8 {[%emt 0:01:06]} 30. Nb7 {[%emt 0:09:09]} Be7 {[%emt 0:02:01]} 31. Nc5 {[%emt 0:07:58]} Rxa1 {[%emt 0:01:10]} 32. Rxa1 {[%emt 0:00:19]} Bxc5 {[%emt 0:00:09]} 33. dxc5 {[%emt 0:00:09]} Rxc5 {[%emt 0:00:17]} 34. Ra7+ {[%emt 0:00:11]} Kg6 {[%emt 0:00:08]} 35. Rb7 {[%emt 0:00:47]} Kf5 {[%emt 0:00:34]} 36. f3 {[%emt 0:00:50]} h4 {[%emt 0:00:10]} 37. Rb6 {[%emt 0:00:38]} Re5 {[%emt 0:00:45]} 38. Kf2 {[%emt 0:00:19]} Rd5 {[%emt 0:01:42]} 39. Ke2 {[%emt 0:01:22]} e5 {[%emt 0:01:40]} 40. Ke3 {[%emt 0:01:37]} Rc5 {[%emt 0:00:51]} 41. Kf2 {[%emt 0:01:28]} 1/2-1/2

[Event "EYCC Girls U10 2021"]
[Site "Tornelo"]
[Date "2021.10.15"]
[Round "8.11"]
[White "Kuzmina, Sofya Vl"]
[Black "Lajdamik, Kinga"]
[Result "1-0"]
[ECO "E11"]
[WhiteElo "1102"]
[BlackElo "1367"]
[Annotator "NA"]
[PlyCount "123"]
[EventDate "2021.10.15"]
[EventType "swiss"]
[EventCountry "NET"]
[SourceTitle "playchess.com"]
[Source "ChessBase"]
[SourceQuality "1"]
[TimeControl "5400+30"]

1. d4 {[%emt 0:00:30]} Nf6 {[%emt 0:00:38]} 2. c4 {[%emt 0:00:20]} e6 {[%emt 0:00:07]} 3. Nf3 {[%emt 0:00:10]} Bb4+ {[%emt 0:00:23]} 4. Bd2 {[%emt 0:00:10]} Qe7 {[%emt 0:00:08]} 5. a3 {[%emt 0:00:22]} Bxd2+ {[%emt 0:00:07]} 6. Nbxd2 {[%emt 0:00:38]} d5 {[%emt 0:06:05]} 7. g3 {[%emt 0:01:26]} O-O {[%emt 0:00:56]} 8. Bg2 {[%emt 0:00:50]} Re8 {[%emt 0:10:28]} 9. O-O {[%emt 0:00:19]} Na6 {[%emt 0:02:58]} 10. Qc2 {[%emt 0:05:01]} c6 {[%emt 0:05:33]} 11. Ng5 {[%emt 0:03:02]} h6 {[%emt 0:01:00]} 12. Ngf3 {[%emt 0:01:02]} Nc7 {[%emt 0:06:21]} 13. Ne5 {[%emt 0:03:44]} Nd7 {[%emt 0:09:53]} 14. Ng4 {[%emt 0:04:37]} dxc4 {[%emt 0:09:41]} 15. Nxc4 {[%emt 0:03:44]} Nf6 {[%emt 0:01:56]} 16. Nge5 {[%emt 0:01:41]} Ncd5 {[%emt 0:08:41]} 17. Rac1 {[%emt 0:08:38]} Rd8 {[%emt 0:08:21]} 18. Na5 {[%emt 0:01:10]} Qc7 {[%emt 0:01:59]} 19. b4 {[%emt 0:03:40]} Ne7 {[%emt 0:07:46]} 20. Rfd1 {[%emt 0:01:22]} Nfd5 {[%emt 0:01:40]} 21. Rd3 {[%emt 0:02:46]} f6 {[%emt 0:03:15]} 22. Nec4 {[%emt 0:04:43]} Nb6 {[%emt 0:03:18]} 23. Nd2 {[%emt 0:02:44]} Nf5 {[%emt 0:01:01]} 24. Nab3 {[%emt 0:02:40]} Qe7 {[%emt 0:02:07]} 25. e4 {[%emt 0:01:01]} Nd6 {[%emt 0:00:20]} 26. Qc5 {[%emt 0:01:51]} Na4 {[%emt 0:01:04]} 27. Qa5 {[%emt 0:00:54]} Nb6 {[%emt 0:00:14]} 28. Qc5 {[%emt 0:00:29]} Na4 {[%emt 0:00:18]} 29. Qc2 {[%emt 0:00:31]} Nb6 {[%emt 0:00:08]} 30. Nc5 {[%emt 0:09:58]} Nd7 {[%emt 0:01:19]} 31. d5 {[%emt 0:02:46]} Nxc5 {[%emt 0:01:29]} 32. bxc5 {[%emt 0:00:24]} Nb5 {[%emt 0:00:23]} 33. d6 {[%emt 0:01:38]} Nxd6 {[%emt 0:01:14]} 34. cxd6 {[%emt 0:00:38]} Rxd6 {[%emt 0:00:20]} 35. Qc5 {[%emt 0:01:40]} Rd7 {[%emt 0:00:11]} 36. Qxe7 {[%emt 0:00:33]} Rxe7 {[%emt 0:00:09]} 37. Rd8+ {[%emt 0:00:24]} Kf7 {[%emt 0:00:07]} 38. Nc4 {[%emt 0:01:07]} Rc7 {[%emt 0:02:43]} 39. Rcd1 {[%emt 0:00:37]} Ke7 {[%emt 0:00:28]} 40. Rg8 {[%emt 0:00:44]} Kf7 {[%emt 0:00:57]} 41. Rdd8 {[%emt 0:00:20]} Kg6 {[%emt 0:00:15]} 42. Nd6 {[%emt 0:01:08]} c5 {[%emt 0:00:25]} 43. Rxc8 {[%emt 0:00:47]} Raxc8 {[%emt 0:00:29]} 44. Rxc8 {[%emt 0:00:15]} Rd7 {[%emt 0:00:22]} 45. e5 {[%emt 0:00:45]} fxe5 {[%emt 0:00:38]} 46. Nxb7 {[%emt 0:01:27]} Rd1+ {[%emt 0:00:30]} 47. Bf1 {[%emt 0:00:09]} Ra1 {[%emt 0:00:17]} 48. Rxc5 {[%emt 0:00:23]} Rxa3 {[%emt 0:00:11]} 49. Rxe5 {[%emt 0:00:09]} Kf6 {[%emt 0:00:19]} 50. Re4 {[%emt 0:00:28]} Kf5 {[%emt 0:00:44]} 51. Nd6+ {[%emt 0:01:15]} Kf6 {[%emt 0:00:15]} 52. Bh3 {[%emt 0:00:28]} a5 {[%emt 0:00:44]} 53. Rxe6+ {[%emt 0:00:18]} Kg5 {[%emt 0:00:21]} 54. Ne4+ {[%emt 0:01:33]} Kh5 {[%emt 0:00:21]} 55. Bf1 {[%emt 0:01:00]} Ra1 {[%emt 0:00:18]} 56. Kg2 {[%emt 0:00:07]} Re1 {[%emt 0:00:36]} 57. Nf6+ {[%emt 0:00:20]} gxf6 {[%emt 0:00:12]} 58. Rxe1 {[%emt 0:00:03]} f5 {[%emt 0:00:11]} 59. Re5 {[%emt 0:00:05]} a4 {[%emt 0:00:26]} 60. Rxf5+ {[%emt 0:00:08]} Kg4 {[%emt 0:00:09]} 61. Bd3 {[%emt 0:00:10]} h5 {[%emt 0:00:07]} 62. h3# {[%emt 0:00:04]} 1-0